bitfinex/quotes_BTCUSD_20250118
["timestamp","ask_amount","ask_price","bid_price","bid_amount"]
[1737238181781,0.00089839,104010.0,104000.0,0.59082772]
[1737238182443,0.00099506,104010.0,104000.0,1.54272772]
[1737238183355,0.00099506,104010.0,104000.0,1.74272772]
[1737238183565,6e-08,104010.0,104000.0,1.60263708]
[1737238184005,6e-08,104010.0,104000.0,1.66312772]
[1737238184440,6e-08,104010.0,104000.0,1.87931319]
[1737238190363,6e-08,104010.0,104000.0,1.80926787]
[1737238192190,6e-08,104010.0,104000.0,1.81016604]
[1737238192621,0.00042776,104010.0,104000.0,1.88021136]
[1737238195744,0.08039839,104020.0,104000.0,1.78405836]
[1737238195968,0.08039839,104020.0,104010.0,0.28843013]
[1737238196176,0.08039839,104020.0,104010.0,0.31838321]
[1737238196413,0.08039839,104020.0,104010.0,0.32396995]
[1737238197909,0.08039839,104020.0,104010.0,0.37075771]
[1737238198319,0.08039839,104020.0,104010.0,1.24305771]
[1737238200240,0.08039839,104020.0,104010.0,1.17301239]
[1737238203647,0.08039839,104020.0,104010.0,1.18279994]
[1737238203848,0.08039839,104020.0,104010.0,1.20184661]
[1737238205105,0.08039839,104020.0,104010.0,1.17884661]
[1737238205306,0.12559839,104020.0,104010.0,1.17884661]
[1737238205512,0.12559839,104020.0,104010.0,1.17974478]
[1737238205781,0.11829839,104020.0,104010.0,1.20274478]
[1737238205989,0.11829839,104020.0,104010.0,1.2727901]
[1737238208026,0.11829839,104020.0,104010.0,1.20274478]
[1737238210951,0.11829839,104020.0,104010.0,1.2727901]
[1737238211152,0.1687204,104030.0,104020.0,0.246135]
[1737238211355,0.1687204,104030.0,104020.0,0.37532889]
[1737238211573,0.1687204,104030.0,104020.0,0.380912]
[1737238211781,0.08259254,104030.0,104020.0,0.380912]
[1737238212528,0.21703786,104030.0,104020.0,0.231912]
[1737238212754,0.20803786,104030.0,104020.0,0.24774668]
[1737238213023,0.20003786,104030.0,104020.0,0.24774668]
[1737238214082,0.81413276,104030.0,104020.0,0.24774668]
[1737238214287,0.64675974,104030.0,104020.0,0.24774668]
[1737238214492,0.71680506,104030.0,104020.0,0.24774668]
[1737238215046,0.64675974,104030.0,104020.0,0.24774668]
[1737238215251,0.71680506,104030.0,104020.0,0.24774668]
[1737238215457,0.41535753,104030.0,104020.0,0.24774668]
[1737238216098,0.51148353,104030.0,104020.0,0.24774668]
[1737238216829,0.41535753,104030.0,104020.0,0.24774668]
[1737238221518,0.51148353,104030.0,104020.0,0.24774668]
[1737238224218,0.51148353,104030.0,104020.0,0.15161168]
[1737238224336,0.65454746,104030.0,104020.0,0.05237087]
[1737238228109,0.65454746,104030.0,104020.0,0.05326883]
[1737238229322,0.58450214,104030.0,104020.0,0.05326883]
[1737238229530,0.65454746,104030.0,104020.0,0.05326883]
[1737238234369,0.58450214,104030.0,104020.0,0.05326883]
[1737238234539,0.65454746,104030.0,104020.0,0.05326883]
[1737238243123,0.63805902,104030.0,104020.0,0.05326883]
[1737238251327,0.64345902,104030.0,104020.0,0.05326883]
[1737238251533,0.64388662,104030.0,104020.0,0.05326883]
[1737238261014,0.93456817,104030.0,104020.0,0.05326883]
[1737238264836,0.67618457,104030.0,104020.0,0.05326883]
[1737238266522,1.12310397,104030.0,104020.0,0.05326883]
[1737238272251,1.05305865,104030.0,104020.0,0.05326883]
[1737238272398,1.12310397,104030.0,104020.0,0.05326883]
[1737238283701,1.11770397,104030.0,104020.0,0.05326883]
[1737238283931,1.12310397,104030.0,104020.0,0.05326883]
[1737238284217,1.11770397,104030.0,104020.0,0.05326883]
[1737238284422,1.12310397,104030.0,104020.0,0.05326883]
[1737238287333,0.2597595,104030.0,104020.0,0.14940383]
[1737238287556,0.2651595,104030.0,104020.0,0.33154464]
[1737238287761,0.2651595,104030.0,104020.0,0.37994464]
[1737238288367,0.33520482,104030.0,104020.0,0.37994464]
[1737238290631,0.32980482,104030.0,104020.0,0.37994464]
[1737238290869,0.33520482,104030.0,104020.0,0.37994464]
[1737238297699,0.33480482,104030.0,104020.0,0.37994464]
[1737238297998,0.55077982,104030.0,104020.0,0.37994464]
[1737238299879,0.64690582,104030.0,104020.0,0.37994464]
[1737238300080,0.64695605,104030.0,104020.0,0.37994464]
[1737238304411,0.64695605,104030.0,104020.0,0.24864464]
[1737238313877,0.55083005,104030.0,104020.0,0.24864464]
[1737238314098,0.64695605,104030.0,104020.0,0.24864464]
[1737238314501,0.48078473,104030.0,104020.0,0.24864464]
[1737238314712,0.48078473,104030.0,104020.0,0.32624464]
[1737238315122,0.57691073,104030.0,104020.0,0.32624464]
[1737238315322,0.64695605,104030.0,104020.0,0.32624464]
[1737238315525,0.48078473,104030.0,104020.0,0.32624464]
[1737238315906,0.55083005,104030.0,104020.0,0.32624464]
[1737238316485,0.48078473,104030.0,104020.0,0.32624464]
[1737238316664,0.57151073,104030.0,104020.0,0.32624464]
[1737238316964,0.57691073,104030.0,104020.0,0.32624464]
[1737238317161,0.57151073,104030.0,104020.0,0.32624464]
[1737238317366,0.57691073,104030.0,104020.0,0.32624464]
[1737238318314,0.64695605,104030.0,104020.0,0.32624464]
[1737238319185,0.57691073,104030.0,104020.0,0.32624464]
[1737238319382,0.48078473,104030.0,104020.0,0.32624464]
[1737238319682,0.55083005,104030.0,104020.0,0.32624464]
[1737238319890,0.64695605,104030.0,104020.0,0.32624464]
[1737238320514,0.55083005,104030.0,104020.0,0.32624464]
[1737238320738,0.48078473,104030.0,104020.0,0.32624464]
[1737238321697,0.47538473,104030.0,104020.0,0.32624464]
[1737238321900,0.48078473,104030.0,104020.0,0.32624464]
[1737238323052,0.52385192,104030.0,104020.0,0.32624464]
[1737238331154,0.59389724,104030.0,104020.0,0.32624464]
[1737238331720,0.59389724,104030.0,104020.0,0.24864464]
[1737238333721,0.69002324,104030.0,104020.0,0.24864464]
[1737238334223,0.69002324,104030.0,104020.0,0.15250964]
[1737238334447,0.81782324,104030.0,104020.0,0.05326883]
[1737238334566,0.68822363,104030.0,104020.0,0.05326883]
[1737238335266,0.51542415,104030.0,104020.0,0.05326883]
[1737238336755,0.61542415,104030.0,104020.0,0.05326883]
[1737238338466,0.65878105,104030.0,104020.0,0.05326883]
[1737238340573,0.65878105,104030.0,104020.0,0.14940383]
[1737238342975,0.65878105,104030.0,104020.0,0.05326883]
[1737238346264,0.72882637,104030.0,104020.0,0.05326883]
[1737238346484,0.65878105,104030.0,104020.0,0.05326883]
[1737238347393,0.66821866,104030.0,104020.0,0.05326883]
[1737238347642,0.76821866,104030.0,104020.0,0.05326883]
[1737238352243,1.24527138,104030.0,104020.0,0.05326883]
[1737238353066,0.50888676,104030.0,104020.0,0.05326883]
[1737238353414,0.76758425,104030.0,104020.0,0.05326883]
[1737238357257,0.83762957,104030.0,104020.0,0.05326883]
[1737238357476,1.04686002,104030.0,104020.0,0.02447092]
[1737238358217,1.52437746,104030.0,104020.0,0.02447092]
[1737238362719,1.52437746,104030.0,104020.0,0.00648107]
[1737238366674,1.42437746,104030.0,104020.0,0.00648107]
[1737238366810,1.32437746,104030.0,104020.0,0.00648107]
[1737238367020,1.42361827,104030.0,104020.0,0.00648107]
[1737238368730,0.096144,104010.0,104000.0,0.00089817]
[1737238368956,0.16739135,104010.0,104000.0,0.00089817]
[1737238369839,0.21217458,104010.0,104000.0,0.00089817]
[1737238370564,0.38279273,104010.0,104000.0,0.00089817]
[1737238370755,0.55391181,104010.0,104000.0,0.00089817]
[1737238371647,0.68314889,104010.0,104000.0,0.00089817]
[1737238373904,0.68854889,104010.0,104000.0,0.00089817]
[1737238375913,0.68854889,104010.0,104000.0,0.01890748]
[1737238376276,0.95783502,104010.0,104000.0,0.01890748]
[1737238376482,0.78854889,104010.0,104000.0,0.01890748]
[1737238379841,0.78854889,104010.0,104000.0,0.02463874]
[1737238380038,0.51695957,104010.0,104000.0,0.12079174]
[1737238380238,0.39312249,104010.0,104000.0,0.19969174]
[1737238380446,0.38772249,104010.0,104000.0,0.29893255]
[1737238380695,0.39312249,104010.0,104000.0,0.34623255]
[1737238381313,0.47930595,104010.0,104000.0,0.34623255]
[1737238381437,0.54935127,104010.0,104000.0,0.34623255]
[1737238381662,0.54395127,104010.0,104000.0,0.34623255]
[1737238381848,0.54935127,104010.0,104000.0,0.34623255]
[1737238382277,0.46323169,104010.0,104000.0,0.34623255]
[1737238384877,0.39318637,104010.0,104000.0,0.34623255]
[1737238385053,0.46323169,104010.0,104000.0,0.34623255]
[1737238385390,0.55937569,104010.0,104000.0,0.34623255]
[1737238386674,0.77477707,104010.0,104000.0,0.34623255]
[1737238388134,0.60858775,104010.0,104000.0,0.34623255]
[1737238388333,0.60318775,104010.0,104000.0,0.34623255]
[1737238388548,0.60858775,104010.0,104000.0,0.34623255]
[1737238389357,0.60318775,104010.0,104000.0,0.34623255]
[1737238389540,0.38778637,104010.0,104000.0,0.41627787]
[1737238389740,0.38778637,104010.0,104000.0,0.34623255]
[1737238390724,0.08618346,104010.0,104000.0,0.34623255]
[1737238391765,0.08618346,104010.0,104000.0,0.37626602]
[1737238391949,0.08618346,104010.0,104000.0,0.34623255]
[1737238392131,0.08618346,104010.0,104000.0,0.37626408]
[1737238392528,0.08618346,104010.0,104000.0,0.34623255]
[1737238392738,0.08618346,104010.0,104000.0,0.6999582]
[1737238392957,0.39361417,104020.0,104010.0,0.0772]
[1737238393163,0.39361417,104020.0,104010.0,0.27258481]
[1737238393366,0.39361417,104020.0,104010.0,0.27831865]
[1737238393784,0.22129306,104020.0,104010.0,0.27831865]
[1737238394281,0.39361417,104020.0,104010.0,0.29632796]
[1737238395629,0.38821417,104020.0,104010.0,0.29632796]
[1737238395829,0.38821417,104020.0,104010.0,0.49512796]
[1737238396196,0.21589306,104020.0,104010.0,0.49512796]
[1737238397134,0.0004278,104020.0,104010.0,0.49512796]
[1737238397311,0.07047312,104020.0,104010.0,0.49512796]
[1737238397511,0.16660812,104020.0,104010.0,0.21912796]
[1737238397735,0.07047312,104020.0,104010.0,0.21912796]
[1737238398095,0.07167489,104020.0,104010.0,0.21912796]
[1737238398324,0.07047312,104020.0,104010.0,0.21912796]
[1737238398542,0.45825949,104020.0,104010.0,0.21912796]
[1737238400171,0.62443981,104020.0,104010.0,0.21912796]
[1737238400372,0.72368062,104020.0,104010.0,0.02374315]
[1737238400702,0.94928062,104020.0,104010.0,0.02374315]
[1737238400897,1.04928062,104020.0,104010.0,0.02374315]
[1737238401303,0.87689563,104020.0,104010.0,0.02374315]
[1737238402324,0.77689563,104020.0,104010.0,0.02374315]
[1737238402563,0.91997591,104020.0,104010.0,0.02374315]
[1737238403140,0.91997591,104020.0,104010.0,0.02464153]
[1737238406126,0.81997591,104020.0,104010.0,0.02464153]
[1737238406335,0.91997591,104020.0,104010.0,0.02464153]
[1737238407020,0.92537591,104020.0,104010.0,0.02464153]
[1737238407242,0.93512787,104020.0,104010.0,0.02464153]
[1737238409641,0.76541394,104020.0,104010.0,0.02464153]
[1737238409841,0.83545926,104020.0,104010.0,0.02464153]
[1737238414720,0.83588706,104020.0,104010.0,0.02464153]
[1737238420884,0.46044446,104020.0,104010.0,0.20348553]
[1737238421080,0.42508978,104020.0,104010.0,0.20348553]
[1737238421317,0.42895478,104020.0,104010.0,0.20348553]
[1737238421517,0.53048978,104020.0,104010.0,0.20348553]
[1737238422467,0.48750815,104020.0,104010.0,0.20348553]
[1737238425238,0.31206283,104020.0,104010.0,0.10734153]
[1737238425443,0.55755347,104020.0,104010.0,0.02464153]
[1737238426803,0.6005351,104020.0,104010.0,0.02464153]
[1737238432334,0.53048978,104020.0,104010.0,0.02464153]
[1737238433804,0.43048978,104020.0,104010.0,0.02464153]
[1737238434645,0.53048978,104020.0,104010.0,0.02464153]
[1737238435697,0.6005351,104020.0,104010.0,0.02464153]
[1737238435892,0.53048978,104020.0,104010.0,0.02464153]
[1737238436949,0.6005351,104020.0,104010.0,0.02464153]
[1737238440246,0.69977591,104020.0,104010.0,0.02464153]
[1737238440453,0.82637591,104020.0,104010.0,0.02464153]
[1737238440905,0.7271351,104020.0,104010.0,0.02464153]
[1737238442617,0.75933499,104020.0,104010.0,0.02464153]
[1737238456249,0.75393499,104020.0,104010.0,0.02464153]
[1737238456448,0.75933499,104020.0,104010.0,0.02464153]
[1737238457297,0.75393499,104020.0,104010.0,0.02464153]
[1737238457485,0.75933499,104020.0,104010.0,0.02464153]
[1737238462122,0.82214856,104020.0,104010.0,0.02464153]
[1737238462535,0.75933499,104020.0,104010.0,0.02464153]
[1737238467720,0.71173499,104020.0,104010.0,0.02464153]
[1737238471955,0.38724435,104020.0,104010.0,0.02464153]
[1737238472131,0.39264435,104020.0,104010.0,0.20378553]
[1737238472336,0.38724435,104020.0,104010.0,0.20378553]
[1737238472535,0.29650935,104020.0,104010.0,0.20378553]
[1737238472732,0.29650935,104020.0,104010.0,0.24888553]
[1737238473151,0.26490732,104020.0,104010.0,0.34812634]
[1737238473368,0.25950732,104020.0,104010.0,0.34812634]
[1737238473571,0.25850732,104020.0,104010.0,0.34812634]
[1737238474151,0.38855469,104020.0,104010.0,0.34812634]
[1737238475405,0.38849615,104020.0,104010.0,0.34812634]
[1737238476182,0.21580518,104020.0,104010.0,0.34812634]
[1737238478046,0.21580518,104020.0,104010.0,0.3577752]
[1737238478238,0.6098377,104030.0,104020.0,0.224235]
[1737238478436,0.6098377,104030.0,104020.0,0.32347581]
[1737238479247,0.39397398,104030.0,104020.0,0.32347581]
[1737238479616,0.39397398,104030.0,104020.0,0.34148512]
[1737238479977,0.38857398,104030.0,104020.0,0.34148512]
[1737238480187,0.38857398,104030.0,104020.0,0.36448512]
[1737238480801,0.38857398,104030.0,104020.0,0.37021747]
[1737238481317,7.783e-05,104030.0,104020.0,0.37021747]
[1737238485625,7.783e-05,104030.0,104020.0,0.69391747]
[1737238486920,7.783e-05,104030.0,104020.0,0.76396279]
[1737238487206,7.783e-05,104030.0,104020.0,0.91396279]
[1737238487424,7.783e-05,104030.0,104020.0,0.98400811]
[1737238487855,7.783e-05,104030.0,104020.0,0.91396279]
[1737238488419,7.783e-05,104030.0,104020.0,0.98400811]
[1737238491507,7.783e-05,104030.0,104020.0,1.20890811]
[1737238493541,7.783e-05,104030.0,104020.0,1.30890811]
[1737238493946,7.783e-05,104030.0,104020.0,1.33878561]
[1737238494548,7.783e-05,104030.0,104020.0,1.63260811]
[1737238494780,7.783e-05,104030.0,104020.0,1.66247895]
[1737238496003,0.00089901,104040.0,104030.0,0.399526]
[1737238496177,0.00089901,104040.0,104030.0,0.64454215]
[1737238496808,0.00089901,104040.0,104030.0,0.66255146]
[1737238499604,0.00089901,104040.0,104030.0,0.67206026]
[1737238500485,0.00089859,104050.0,104040.0,0.119116]
[1737238500685,0.00094882,104050.0,104040.0,1.36114745]
[1737238500906,0.00094882,104050.0,104040.0,1.36682405]
[1737238501652,0.00094882,104050.0,104040.0,1.38475628]
[1737238503693,0.00094882,104050.0,104040.0,1.41460015]
[1737238504342,8.2e-07,104050.0,104040.0,1.48475628]
[1737238504535,8.2e-07,104050.0,104040.0,1.58463862]
[1737238505231,8.2e-07,104050.0,104040.0,1.6037785]
[1737238505700,0.00089859,104060.0,104040.0,1.6037785]
[1737238505871,0.00089859,104060.0,104050.0,0.56879313]
[1737238506277,0.00089859,104060.0,104050.0,0.64450681]
[1737238506488,0.00089859,104060.0,104050.0,0.96820681]
[1737238507026,0.00089859,104060.0,104050.0,0.97537536]
[1737238507447,0.00129901,104070.0,104050.0,0.82715527]
[1737238507655,0.00129901,104070.0,104060.0,0.28838413]
[1737238508077,0.00129901,104070.0,104060.0,0.29404904]
[1737238508279,0.00129901,104070.0,104060.0,0.31198127]
[1737238508714,0.00129901,104070.0,104060.0,0.31914982]
[1737238509307,0.00129901,104070.0,104060.0,0.47199514]
[1737238509534,0.00129901,104070.0,104060.0,0.79569514]
[1737238509938,0.00129901,104070.0,104060.0,0.78852659]
[1737238510111,0.00180139,104070.0,104060.0,0.78852659]
[1737238510304,0.00180139,104070.0,104060.0,0.77059436]
[1737238510732,0.00180139,104070.0,104060.0,0.81849436]
[1737238510890,0.00180139,104070.0,104060.0,0.83784964]
[1737238511265,0.00180139,104070.0,104060.0,1.38644964]
[1737238511865,0.00180139,104070.0,104060.0,1.40436872]
[1737238512375,0.00180139,104070.0,104060.0,1.66391022]
[1737238512583,0.00180139,104070.0,104060.0,1.69374451]
[1737238513001,0.00180139,104070.0,104060.0,1.79374451]
[1737238513352,3.9e-07,104070.0,104060.0,1.86378983]
[1737238513564,3.9e-07,104070.0,104060.0,1.79374451]
[1737238515966,3.9e-07,104070.0,104060.0,1.55365387]
[1737238516109,3.9e-07,104070.0,104060.0,1.50069919]
[1737238516344,3.9e-07,104070.0,104060.0,1.4708649]
[1737238516899,3.9e-07,104070.0,104060.0,1.4938649]
[1737238517241,3.9e-07,104070.0,104060.0,1.14311958]
[1737238518058,3.9e-07,104070.0,104060.0,1.29311958]
[1737238519057,3.9e-07,104070.0,104060.0,1.39956563]
[1737238519601,0.00042809,104070.0,104060.0,1.47726563]
[1737238521407,0.00042809,104070.0,104060.0,1.50715457]
[1737238531307,0.00042809,104070.0,104060.0,1.40070852]
[1737238531893,0.00042809,104070.0,104060.0,1.40160648]
[1737238534774,0.00042809,104070.0,104060.0,1.50805253]
[1737238536902,0.00042809,104070.0,104060.0,1.40160648]
[1737238537347,0.00042809,104070.0,104060.0,1.32390648]
[1737238539442,0.00042809,104070.0,104060.0,1.39375536]
[1737238541958,0.00042809,104070.0,104060.0,1.46360424]
[1737238543061,0.00042809,104070.0,104060.0,1.39375536]
[1737238546259,0.00042809,104070.0,104060.0,1.47195536]
[1737238549932,0.00042809,104070.0,104060.0,1.54180424]
[1737238550795,0.00042809,104070.0,104060.0,1.79090424]
[1737238550962,0.00042809,104070.0,104060.0,2.00708971]
[1737238551699,0.00089943,104080.0,104070.0,0.023]
[1737238551944,0.00089943,104080.0,104070.0,1.19036763]
[1737238553644,0.00089943,104080.0,104070.0,1.20828671]
[1737238554104,0.00089943,104080.0,104070.0,1.28448671]
[1737238554954,0.00089943,104080.0,104070.0,1.43448671]
[1737238558022,4.3e-07,104080.0,104070.0,1.60433559]
[1737238558234,4.3e-07,104080.0,104070.0,1.65343559]
[1737238558405,4.3e-07,104080.0,104070.0,1.58358671]
[1737238558828,4.3e-07,104080.0,104070.0,1.79977218]
[1737238559429,4.3e-07,104080.0,104070.0,1.97525684]
[1737238559623,4.3e-07,104080.0,104070.0,1.90540796]
[1737238561855,4.3e-07,104080.0,104070.0,1.97525684]
[1737238563431,0.0008586,104090.0,104080.0,0.4272]
[1737238563634,0.00100922,104090.0,104080.0,0.81510651]
[1737238563790,0.00100922,104090.0,104080.0,0.84472861]
[1737238564431,0.00100922,104090.0,104080.0,1.06060294]
[1737238564929,0.00100922,104090.0,104080.0,1.07852202]
[1737238565536,0.00100922,104090.0,104080.0,1.05453252]
[1737238566162,2.2e-07,104090.0,104080.0,1.92683252]
[1737238566544,2.2e-07,104090.0,104080.0,1.95082202]
[1737238566793,2.2e-07,104090.0,104080.0,1.95622202]
[1737238567012,2.2e-07,104090.0,104080.0,1.93223252]
[1737238567313,2.2e-07,104090.0,104080.0,1.95622202]
[1737238567667,2e-08,104090.0,104080.0,2.00392202]
[1737238567847,0.1311277,104110.0,104100.0,0.269061]
[1737238568047,0.1311277,104110.0,104100.0,0.53788851]
[1737238568276,0.0008277,104110.0,104100.0,0.53788851]
[1737238569608,0.0008277,104110.0,104100.0,0.55580759]
[1737238570468,0.0008277,104110.0,104100.0,0.50799957]
[1737238571183,0.0008277,104110.0,104100.0,0.5136138]
[1737238572551,0.0008277,104110.0,104100.0,0.52317031]
[1737238572735,0.0778277,104110.0,104100.0,0.52317031]
[1737238572939,0.0778277,104110.0,104100.0,0.45332143]
[1737238575411,0.0778277,104110.0,104100.0,0.47302642]
[1737238584249,0.0778277,104110.0,104100.0,0.50293389]
[1737238584653,0.0778277,104110.0,104100.0,0.57278277]
[1737238586037,0.0008277,104110.0,104100.0,0.57278277]
[1737238595171,0.0008277,104110.0,104100.0,0.50293389]
[1737238597335,0.0008277,104110.0,104100.0,0.57278277]
[1737238597611,0.1278277,104120.0,104110.0,0.119052]
[1737238597845,0.1278277,104120.0,104110.0,0.31804916]
[1737238601311,0.0004277,104120.0,104110.0,0.31804916]
[1737238601508,0.0004277,104120.0,104110.0,0.46804916]
[1737238606747,0.0801277,104120.0,104110.0,0.46804916]
[1737238609092,0.0801277,104120.0,104110.0,0.39820028]
[1737238609508,0.1256277,104120.0,104110.0,0.39820028]
[1737238610244,0.1256277,104120.0,104110.0,0.46804916]
[1737238610648,0.1256277,104120.0,104110.0,0.39820028]
[1737238612286,0.1256277,104120.0,104110.0,0.46804916]
[1737238614027,0.1256277,104120.0,104110.0,0.46894712]
[1737238615285,0.0801277,104120.0,104110.0,0.46894712]
[1737238620170,0.0004277,104120.0,104110.0,0.46894712]
[1737238624440,0.0004277,104120.0,104110.0,0.47442927]
[1737238627589,0.0004277,104120.0,104110.0,0.6903036]
[1737238628742,0.0004277,104120.0,104110.0,0.47442927]
[1737238631029,0.22326681,104130.0,104120.0,0.269043]
[1737238631234,0.22341741,104130.0,104120.0,0.46804016]
[1737238631447,0.22341741,104130.0,104120.0,0.4735189]
[1737238632272,0.22341741,104130.0,104120.0,0.40367002]
[1737238633071,0.22341741,104130.0,104120.0,0.4735189]
[1737238633663,0.22341741,104130.0,104120.0,0.40367002]
[1737238633862,0.22341741,104130.0,104120.0,0.4735189]
[1737238636979,0.22384501,104130.0,104120.0,0.4735189]
[1737238637154,0.22384501,104130.0,104120.0,0.48300504]
[1737238637729,0.22384501,104130.0,104120.0,0.50269587]
[1737238640014,0.13752294,104130.0,104120.0,0.50269587]
[1737238640688,0.13752294,104130.0,104120.0,0.43284699]
[1737238641114,0.13752294,104130.0,104120.0,0.40293952]
[1737238641312,0.13752294,104130.0,104120.0,0.36024869]
[1737238641538,0.35332812,104130.0,104120.0,0.36024869]
[1737238642560,0.52601909,104130.0,104120.0,0.36024869]
[1737238643091,0.74188281,104130.0,104120.0,0.36024869]
[1737238649156,0.74188281,104130.0,104120.0,0.36114665]
[1737238653075,0.52601909,104130.0,104120.0,0.36114665]
[1737238654392,0.52504438,104130.0,104120.0,0.38414665]
[1737238661945,0.52504438,104130.0,104120.0,0.45399553]
[1737238662103,0.47854438,104130.0,104120.0,0.45399553]
[1737238662486,0.47854438,104130.0,104120.0,0.38414665]
[1737238662692,0.30585341,104130.0,104120.0,0.45399553]
[1737238663203,0.22395341,104130.0,104120.0,0.45399553]
[1737238663425,0.0944703,104130.0,104120.0,0.45399553]
[1737238664313,0.0944703,104130.0,104120.0,0.38414665]
[1737238667367,0.0944703,104130.0,104120.0,0.45399553]
[1737238668607,0.00814823,104130.0,104120.0,0.45399553]
[1737238669116,0.00814823,104130.0,104120.0,0.38414665]
[1737238673838,0.0944703,104130.0,104120.0,0.38414665]
[1737238680929,0.0944703,104130.0,104120.0,0.45399553]
[1737238681427,0.0944703,104130.0,104120.0,0.38414665]
[1737238682231,0.0944703,104130.0,104120.0,0.45399553]
[1737238683074,0.0944703,104130.0,104120.0,0.38414665]
[1737238683633,0.0944703,104130.0,104120.0,0.45399553]
[1737238685142,0.0944703,104130.0,104120.0,0.38414665]
[1737238690397,0.0944703,104130.0,104120.0,0.41413163]
[1737238692121,0.0944703,104130.0,104120.0,0.48398051]
[1737238693611,0.0944703,104130.0,104120.0,0.63552939]
[1737238694422,0.00814823,104130.0,104120.0,0.68112939]
[1737238694769,0.00814823,104130.0,104120.0,0.75097827]
[1737238694969,0.00814823,104130.0,104120.0,0.68112939]
[1737238695214,0.00814823,104130.0,104120.0,1.55342939]
[1737238695414,0.21623288,104140.0,104130.0,0.53603076]
[1737238695636,0.0004277,104140.0,104130.0,0.66525655]
[1737238696689,0.0004277,104140.0,104130.0,0.88113088]
[1737238697324,7e-07,104140.0,104130.0,0.98113088]
[1737238697730,0.0007885,104150.0,104140.0,0.496324]
[1737238697945,5e-07,104150.0,104140.0,0.83509643]
[1737238698348,5e-07,104150.0,104140.0,0.93509643]
[1737238698756,0.0003883,104160.0,104150.0,0.396315]
[1737238698933,0.0003883,104160.0,104150.0,0.66523855]
[1737238699134,0.0003883,104160.0,104150.0,0.67068472]
[1737238700590,0.00043849,104160.0,104150.0,0.67068472]
[1737238700994,0.0002064,104160.0,104150.0,0.67068472]
[1737238702676,0.0002064,104160.0,104150.0,0.64069974]
[1737238703680,0.0002064,104160.0,104150.0,0.66034016]
[1737238707426,0.0002064,104160.0,104150.0,0.6701273]
[1737238708695,0.0001064,104160.0,104150.0,0.6701273]
[1737238716057,4e-07,104160.0,104150.0,0.8085233]
[1737238719996,4e-07,104160.0,104150.0,0.80942168]
[1737238720131,0.0004282,104160.0,104150.0,0.80942168]
[1737238720963,0.0004282,104160.0,104150.0,0.83914322]
[1737238721540,0.0004282,104160.0,104150.0,0.83915157]
[1737238722235,0.0004282,104160.0,104150.0,0.93915157]
[1737238722457,0.0004282,104160.0,104150.0,0.66972392]
[1737238722752,0.0004282,104160.0,104150.0,0.4892728]
[1737238722903,0.0773282,104160.0,104150.0,0.4892728]
[1737238723111,0.0773282,104160.0,104150.0,0.38102792]
[1737238723309,0.0773282,104160.0,104150.0,0.4508768]
[1737238723715,0.0773282,104160.0,104150.0,0.4738768]
[1737238726627,0.0004282,104160.0,104150.0,0.67442568]
[1737238726833,0.0004282,104160.0,104150.0,0.58647571]
[1737238727057,0.0004282,104160.0,104150.0,0.50367571]
[1737238728717,0.0004282,104160.0,104150.0,0.57352459]
[1737238730316,0.1270276,104180.0,104170.0,0.33884488]
[1737238730487,0.12752945,104180.0,104170.0,0.43808569]
[1737238730733,0.12752945,104180.0,104170.0,0.44399705]
[1737238731311,0.10209202,104180.0,104170.0,0.44399705]
[1737238732528,0.10209202,104180.0,104170.0,0.37414817]
[1737238732733,0.10209202,104180.0,104170.0,0.44399705]
[1737238732936,0.10209202,104180.0,104170.0,0.37414817]
[1737238733628,0.10209202,104180.0,104170.0,0.37859398]
[1737238738821,0.10209202,104180.0,104170.0,0.39780592]
[1737238739224,0.10209202,104180.0,104170.0,0.40742624]
[1737238741323,0.1719409,104180.0,104170.0,0.25742624]
[1737238741531,0.1719409,104180.0,104170.0,0.20559398]
[1737238741707,0.10209202,104180.0,104170.0,0.20559398]
[1737238741909,0.10209202,104180.0,104170.0,0.22859398]
[1737238742523,0.31909718,104180.0,104170.0,0.22859398]
[1737238742737,0.3178972,104180.0,104170.0,0.22859398]
[1737238745062,0.3178972,104180.0,104170.0,0.22949215]
[1737238745268,0.55358196,104180.0,104170.0,0.01125534]
[1737238745440,0.65400966,104180.0,104170.0,0.01125534]
[1737238746611,0.98743723,104180.0,104170.0,0.01125534]
[1737238747607,0.72888603,104180.0,104170.0,0.01125534]
[1737238749158,0.69690139,104180.0,104170.0,0.01125534]
[1737238751081,0.71768478,104180.0,104170.0,0.01125534]
[1737238751302,0.69690139,104180.0,104170.0,0.01125534]
[1737238752763,0.70226139,104180.0,104170.0,0.01125534]
[1737238754758,0.91759742,104180.0,104170.0,0.01125534]
[1737238755294,0.92735418,104180.0,104170.0,0.01125534]
[1737238755747,0.71201815,104180.0,104170.0,0.01125534]
[1737238756681,0.93110784,104180.0,104170.0,0.01125534]
[1737238758099,0.94910784,104180.0,104170.0,0.01225534]
[1737238758603,0.33570376,104160.0,104150.0,0.00089838]
[1737238758835,0.46290376,104160.0,104150.0,0.00089838]
[1737238759419,0.42954279,104160.0,104150.0,0.00089838]
[1737238759951,0.64470276,104160.0,104150.0,0.00089838]
[1737238762908,0.64470276,104160.0,104150.0,0.00444832]
[1737238763080,0.64470276,104160.0,104150.0,0.00089838]
[1737238763284,0.64470276,104160.0,104150.0,0.00444832]
[1737238763584,0.64470276,104160.0,104150.0,0.00089838]
[1737238763743,0.64470276,104160.0,104150.0,0.00444832]
[1737238763958,0.64470276,104160.0,104150.0,0.00089838]
[1737238764144,0.64470276,104160.0,104150.0,0.00444832]
[1737238772393,0.51560678,104160.0,104150.0,0.00444832]
[1737238776194,0.40926999,104160.0,104150.0,0.01235958]
[1737238776394,0.40926999,104160.0,104150.0,0.00444832]
[1737238776543,0.40926999,104160.0,104150.0,0.01235958]
[1737238776906,0.40926999,104160.0,104150.0,0.00444832]
[1737238777801,0.08606399,104160.0,104150.0,0.22270413]
[1737238778041,0.09262422,104160.0,104150.0,0.22270413]
[1737238782003,0.2217202,104160.0,104150.0,0.22270413]
[1737238782133,0.22051997,104160.0,104150.0,0.22270413]
[1737238784577,0.39264795,104160.0,104150.0,0.22270413]
[1737238785569,0.39264795,104160.0,104150.0,0.30140413]
[1737238785793,0.21515997,104160.0,104150.0,0.30140413]
[1737238786687,0.60823563,104170.0,104160.0,0.023]
[1737238786910,0.60823563,104170.0,104160.0,0.21824681]
[1737238787088,0.60823563,104170.0,104160.0,0.2216411]
[1737238787542,0.39307565,104170.0,104160.0,0.2216411]
[1737238788410,0.48907165,104170.0,104160.0,0.2216411]
[1737238789172,0.60287563,104170.0,104160.0,0.3003411]
[1737238790083,0.08649169,104170.0,104160.0,0.3003411]
[1737238791327,0.08649169,104170.0,104160.0,0.30983635]
[1737238794844,0.0004277,104170.0,104160.0,0.30983635]
[1737238795973,0.08649169,104170.0,104160.0,0.30983635]
[1737238796274,0.08649169,104170.0,104160.0,0.32915991]
[1737238797296,0.0004277,104170.0,104160.0,0.32915991]
[1737238799181,0.00162771,104170.0,104160.0,0.23113635]
[1737238799862,0.09762371,104170.0,104160.0,0.2216411]
[1737238800000,0.00162771,104170.0,104160.0,0.2216411]
[1737238800820,0.0876917,104170.0,104160.0,0.2216411]
[1737238801414,0.25365575,104170.0,104160.0,0.2216411]
[1737238801793,0.25245574,104170.0,104160.0,0.2216411]